bitfinex/quotes_BTCUSD_20250518
["timestamp","ask_amount","ask_price","bid_price","bid_amount"]
[1747583632079,0.43642821,105550.0,105540.0,0.29083344]
[1747583632338,0.43446086,105550.0,105540.0,0.29083344]
[1747583633126,0.43446086,105550.0,105540.0,0.29096887]
[1747583633574,0.42498722,105550.0,105540.0,0.29096887]
[1747583633738,0.43446086,105550.0,105540.0,0.29096887]
[1747583634138,0.6428926,105550.0,105540.0,0.23144507]
[1747583634346,1.15561591,105550.0,105540.0,0.04201042]
[1747583634588,1.15561591,105550.0,105540.0,0.24098693]
[1747583634766,1.15561591,105550.0,105540.0,0.04201051]
[1747583634982,1.14776306,105550.0,105540.0,0.03253543]
[1747583635149,1.14776306,105550.0,105540.0,0.00013543]
[1747583636532,1.86356306,105550.0,105540.0,0.00013543]
[1747583637255,0.811392,105530.0,105520.0,0.01120466]
[1747583637493,0.63571126,105530.0,105520.0,0.01134608]
[1747583637692,0.9299014,105530.0,105520.0,0.01134608]
[1747583638022,0.23475506,105520.0,105510.0,0.01486424]
[1747583638231,0.78741336,105510.0,105500.0,0.002981]
[1747583638437,0.69516682,105510.0,105500.0,0.2349059]
[1747583638661,0.92419763,105510.0,105500.0,0.24438448]
[1747583638865,1.16167745,105510.0,105500.0,0.24438448]
[1747583639090,1.16167745,105510.0,105500.0,0.25386297]
[1747583639289,1.15220031,105510.0,105500.0,0.24438448]
[1747583639492,1.14272299,105510.0,105500.0,0.00345378]
[1747583639693,1.49726384,105510.0,105500.0,0.00345378]
[1747583639972,0.04297794,105490.0,105480.0,0.18952572]
[1747583640161,0.92022712,105490.0,105480.0,0.2179665]
[1747583640360,0.91825977,105490.0,105480.0,0.25984652]
[1747583640569,0.91825977,105490.0,105480.0,0.26932582]
[1747583640570,0.66251818,105490.0,105480.0,0.26932582]
[1747583640716,0.38728655,105490.0,105480.0,0.26932582]
[1747583640928,0.68147669,105490.0,105480.0,0.30102582]
[1747583641142,0.68147669,105490.0,105480.0,0.30302582]
[1747583641553,0.69095617,105490.0,105480.0,0.30302582]
[1747583642051,0.6814766,105490.0,105480.0,0.30502582]
[1747583642260,0.66251818,105490.0,105480.0,0.30502582]
[1747583642464,0.11185025,105490.0,105480.0,0.30502582]
[1747583642705,0.3483776,105490.0,105480.0,0.30502582]
[1747583642933,0.64060039,105490.0,105480.0,0.30502582]
[1747583643349,0.65007915,105490.0,105480.0,0.30502582]
[1747583643557,0.64060039,105490.0,105480.0,0.30502582]
[1747583644029,0.40604039,105490.0,105480.0,0.30502582]
[1747583644542,0.29419014,105490.0,105480.0,0.30502582]
[1747583644748,0.94374085,105500.0,105490.0,0.28132906]
[1747583644957,1.34471834,105500.0,105490.0,0.28132906]
[1747583645160,0.6946,105500.0,105490.0,0.28132906]
[1747583645375,1.22339014,105500.0,105490.0,0.28132906]
[1747583645998,0.98879014,105500.0,105490.0,0.28132906]
[1747583646211,1.01280894,105500.0,105490.0,0.28132906]
[1747583646411,1.11959647,105500.0,105490.0,0.28132906]
[1747583646648,1.37315318,105500.0,105490.0,0.28132906]
[1747583647118,1.37315309,105500.0,105490.0,0.28132906]
[1747583647348,1.35419647,105500.0,105490.0,0.28132906]
[1747583647858,1.34471825,105500.0,105490.0,0.28132906]
[1747583648888,1.33524039,105500.0,105490.0,0.28132906]
[1747583649285,0.6946,105500.0,105490.0,0.28132906]
[1747583650229,0.73727853,105510.0,105500.0,0.21800838]
[1747583650431,0.83458793,105510.0,105500.0,0.28120838]
[1747583650730,0.83458784,105510.0,105500.0,0.28120838]
[1747583650940,0.81563356,105510.0,105500.0,0.28120838]
[1747583651349,0.52144342,105510.0,105500.0,0.28120838]
[1747583651572,0.52244342,105510.0,105500.0,0.28120838]
[1747583651724,0.00147317,105510.0,105500.0,0.28120838]
[1747583652964,0.00247317,105510.0,105500.0,0.28120838]
[1747583653517,0.29863066,105510.0,105500.0,0.28120838]
[1747583653720,0.9206916,105510.0,105500.0,0.23095203]
[1747583653853,0.9206916,105510.0,105500.0,0.24043034]
[1747583654067,0.93016937,105510.0,105500.0,0.24990856]
[1747583654468,0.93016937,105510.0,105500.0,0.19905203]
[1747583654670,0.92069214,105510.0,105500.0,0.18957345]
[1747583654855,0.92069214,105510.0,105500.0,0.19905203]
[1747583655060,0.92069214,105510.0,105500.0,0.20853052]
[1747583655299,0.92069214,105510.0,105500.0,0.21800892]
[1747583655490,0.42746874,105510.0,105500.0,0.26946527]
[1747583655695,0.626502,105510.0,105500.0,0.26946545]
[1747583655970,0.626502,105510.0,105500.0,0.25998723]
[1747583656548,0.626502,105510.0,105500.0,0.21800892]
[1747583656754,0.626502,105510.0,105500.0,0.22748723]
[1747583657158,0.626502,105510.0,105500.0,0.25998723]
[1747583657883,0.626502,105510.0,105500.0,0.25050892]
[1747583658070,0.626502,105510.0,105500.0,0.21800892]
[1747583658283,0.90173696,105510.0,105500.0,0.19905203]
[1747583658940,0.22307101,105500.0,105490.0,0.27195003]
[1747583659165,0.41551825,105500.0,105490.0,0.28142915]
[1747583659394,0.43447487,105500.0,105490.0,0.29090809]
[1747583659836,0.4344746,105500.0,105490.0,0.29090809]
[1747583660271,0.13080624,105500.0,105490.0,0.29090809]
[1747583660495,0.4174856,105500.0,105490.0,0.29090809]
[1747583660716,0.43447469,105500.0,105490.0,0.29090809]
[1747583661578,0.44395309,105500.0,105490.0,0.29090809]
[1747583662404,0.43447469,105500.0,105490.0,0.29090809]
[1747583663070,0.44395309,105500.0,105490.0,0.29090809]
[1747583663275,0.63352654,105500.0,105490.0,0.26247082]
[1747583663456,0.64300512,105500.0,105490.0,0.28142915]
[1747583663670,0.63352654,105500.0,105490.0,0.29090809]
[1747583664440,0.63352726,105500.0,105490.0,0.04197957]
[1747583665041,0.01895779,105490.0,105480.0,0.28136641]
[1747583665249,0.60201611,105490.0,105480.0,0.29084625]
[1747583665442,0.41045724,105490.0,105480.0,0.29084625]
[1747583665884,0.1162671,105490.0,105480.0,0.29084625]
[1747583666091,0.1138176,105490.0,105480.0,0.29284625]
[1747583666294,0.1138176,105490.0,105480.0,0.29384625]
[1747583666678,0.1138176,105490.0,105480.0,0.30332618]
[1747583666896,0.12329645,105490.0,105480.0,0.30332618]
[1747583667110,0.1138176,105490.0,105480.0,0.30332618]
[1747583667326,0.12329654,105490.0,105480.0,0.30332618]
[1747583667544,0.12329645,105490.0,105480.0,0.30332618]
[1747583667720,0.1138176,105490.0,105480.0,0.30332618]
[1747583668166,0.61655714,105490.0,105480.0,0.27488639]
[1747583668377,0.61458979,105490.0,105480.0,0.28436641]
[1747583668595,0.62406963,105490.0,105480.0,0.0664]
[1747583668802,0.6335492,105490.0,105480.0,0.0355]
[1747583669006,0.62406963,105490.0,105480.0,0.01248047]
[1747583669246,0.61459051,105490.0,105480.0,0.003]
[1747583669663,0.89930144,105490.0,105480.0,0.003]
[1747583669873,0.6051113,105490.0,105480.0,0.003]
[1747583670292,0.8325513,105490.0,105480.0,0.003]
[1747583670548,0.53836062,105490.0,105480.0,0.2227094]
[1747583670753,0.85150909,105490.0,105480.0,0.27367007]
[1747583671159,0.84202979,105490.0,105480.0,0.28315027]
[1747583671353,0.8609883,105490.0,105480.0,0.28215027]
[1747583671586,0.8609883,105490.0,105480.0,0.27267007]
[1747583671802,0.84302979,105490.0,105480.0,0.27267007]
[1747583672007,0.3497691,105490.0,105480.0,0.28963002]
[1747583672417,0.34129025,105490.0,105480.0,0.28963002]
[1747583672624,0.35080901,105490.0,105480.0,0.28963002]
[1747583672828,0.12336901,105490.0,105480.0,0.28963002]
[1747583673004,0.12533636,105490.0,105480.0,0.28963002]
[1747583674347,0.1158576,105490.0,105480.0,0.20163002]
[1747583674541,0.12533645,105490.0,105480.0,0.20163002]
[1747583674749,0.1158576,105490.0,105480.0,0.20163002]
[1747583675599,0.10131675,105490.0,105480.0,0.20163002]
[1747583677016,0.11079551,105490.0,105480.0,0.20163002]
[1747583677635,0.40498565,105490.0,105480.0,0.20163002]
[1747583677830,0.39353954,105490.0,105480.0,0.20163002]
[1747583678286,0.40301839,105490.0,105480.0,0.20163002]
[1747583678479,0.10882825,105490.0,105480.0,0.20163002]
[1747583678680,0.1107956,105490.0,105480.0,0.20163002]
[1747583679072,0.11028926,105490.0,105480.0,0.20163002]
[1747583680663,0.41395834,105490.0,105480.0,0.20163002]
[1747583680892,0.42147002,105490.0,105480.0,0.20163002]
[1747583681714,0.63508277,105490.0,105470.0,0.0377913]
[1747583681959,0.81345801,105480.0,105470.0,0.0377913]
[1747583682143,0.61460992,105480.0,105470.0,0.26899995]
[1747583682343,0.61460992,105480.0,105470.0,0.28796204]
[1747583682563,0.61460992,105480.0,105470.0,0.28796195]
[1747583682755,0.61460992,105480.0,105470.0,0.28796204]
[1747583682933,0.61460938,105480.0,105470.0,0.29744295]
[1747583683135,0.61460938,105480.0,105470.0,0.29744286]
[1747583683344,0.62408949,105480.0,105470.0,0.27748113]
[1747583683720,0.86100978,105480.0,105470.0,0.28696213]
[1747583683936,0.85152949,105480.0,105470.0,0.29644295]
[1747583684142,0.86100978,105480.0,105470.0,0.28696213]
[1747583684501,0.86100978,105480.0,105470.0,0.27748113]
[1747583685054,0.85152949,105480.0,105470.0,0.27748113]
[1747583685255,0.84204938,105480.0,105470.0,0.28696213]
[1747583685470,0.86100951,105480.0,105470.0,0.28696213]
[1747583685703,1.13624033,105480.0,105470.0,0.0064913]
[1747583685940,0.84205019,105480.0,105470.0,0.0064913]
[1747583686172,0.84205019,105480.0,105470.0,0.0377913]
[1747583687087,0.84205019,105480.0,105470.0,0.0064913]
[1747583687312,0.92052022,105480.0,105470.0,0.0064913]
[1747583687520,1.14796022,105480.0,105470.0,0.0064913]
[1747583688406,1.09755461,105480.0,105470.0,0.0064913]
[1747583689004,0.78216447,105480.0,105470.0,0.0064913]
[1747583689849,0.78216447,105480.0,105470.0,0.22641868]
[1747583689850,0.54524418,105480.0,105470.0,0.22641868]
[1747583690060,0.12132991,105480.0,105470.0,0.27628095]
[1747583690277,0.0973094,105480.0,105470.0,0.62576168]
[1747583690710,0.09927675,105480.0,105470.0,0.62576168]
[1747583691121,0.61657673,105480.0,105470.0,0.61628113]
[1747583691328,0.61460929,105480.0,105470.0,0.63524268]
[1747583691896,0.60512945,105480.0,105470.0,0.63524268]
[1747583692887,0.0973094,105480.0,105470.0,0.63524268]
[1747583693132,0.09927675,105480.0,105470.0,0.63524268]
[1747583693397,0.0973094,105480.0,105470.0,0.63524268]
[1747583694252,0.22748,105490.0,105480.0,0.28134973]
[1747583694477,0.0973494,105490.0,105480.0,0.28134973]
[1747583694745,0.09931675,105490.0,105480.0,0.28134973]
[1747583695723,0.10131675,105490.0,105480.0,0.28134973]
[1747583697767,0.32543675,105490.0,105480.0,0.28134973]
[1747583697974,0.3234694,105490.0,105480.0,0.28134973]
[1747583703443,0.3234694,105490.0,105480.0,0.28127973]
[1747583707520,0.33294816,105490.0,105480.0,0.28127973]
[1747583707692,0.84074952,105490.0,105480.0,0.27186989]
[1747583707899,0.85970785,105490.0,105480.0,0.23038978]
[1747583708095,0.85970785,105490.0,105480.0,0.23987007]
[1747583708303,0.86918733,105490.0,105480.0,0.24935018]
[1747583708522,0.86918724,105490.0,105480.0,0.24935018]
[1747583708763,0.85970848,105490.0,105480.0,0.25883029]
[1747583709111,0.85022909,105490.0,105480.0,0.25883029]
[1747583709522,0.84074979,105490.0,105480.0,0.26831013]
[1747583709724,0.84074979,105490.0,105480.0,0.30081013]
[1747583709938,0.85022909,105490.0,105480.0,0.29133038]
[1747583710349,0.85022909,105490.0,105480.0,0.23987007]
[1747583710540,0.85022909,105490.0,105470.0,0.28078113]
[1747583710541,0.2325904,105480.0,105470.0,0.28078113]
[1747583710740,0.62408985,105480.0,105470.0,0.24526213]
[1747583710963,0.62408976,105480.0,105470.0,0.23578131]
[1747583711167,0.63357005,105480.0,105470.0,0.23578131]
[1747583711366,0.62408976,105480.0,105470.0,0.25474358]
[1747583711501,0.62408976,105480.0,105470.0,0.24526249]
[1747583712113,0.62408976,105480.0,105470.0,0.23578131]
[1747583712297,0.20858876,105470.0,105460.0,0.24437945]
[1747583712541,0.39149954,105470.0,105460.0,0.25386108]
[1747583712996,0.4009801,105470.0,105460.0,0.25386108]
[1747583713145,0.4009801,105470.0,105460.0,0.22757276]
[1747583713552,0.09778228,105470.0,105460.0,0.22757276]
[1747583713819,0.09974963,105470.0,105460.0,0.26337276]
[1747583714154,0.09974963,105470.0,105460.0,0.29507276]
[1747583715187,0.28937701,105470.0,105460.0,0.09594561]
[1747583715398,0.33039288,105470.0,105460.0,0.22541183]
[1747583715593,0.62458293,105470.0,105460.0,0.23489391]
[1747583715774,0.62458284,105470.0,105460.0,0.2443759]
[1747583715948,0.32091188,105470.0,105460.0,0.2443759]
[1747583716856,0.32091188,105470.0,105460.0,0.2538578]
[1747583717400,0.11232313,105470.0,105460.0,0.2538578]
[1747583717756,0.11429048,105470.0,105460.0,0.29503943]
[1747583718160,0.12377104,105470.0,105460.0,0.29503943]
[1747583718319,0.31339842,105470.0,105460.0,0.29503952]
[1747583718519,0.31143107,105470.0,105460.0,0.29503952]
[1747583718793,0.31143107,105470.0,105460.0,0.29503961]
[1747583719076,0.3209118,105470.0,105460.0,0.29503961]
[1747583719923,0.3209118,105470.0,105460.0,0.30452133]
[1747583720159,0.11232313,105470.0,105460.0,0.30452088]
[1747583720369,0.11429048,105470.0,105460.0,0.30452088]
[1747583720967,0.12377104,105470.0,105460.0,0.30452088]
[1747583721485,0.12377104,105470.0,105460.0,0.29503925]
[1747583721486,0.31339842,105470.0,105460.0,0.29503925]
[1747583721717,0.11232313,105470.0,105460.0,0.29503925]
[1747583721926,0.11232313,105470.0,105460.0,0.30452088]
[1747583722858,0.09778228,105470.0,105460.0,0.30452088]
[1747583723073,0.09974963,105470.0,105460.0,0.30452088]
[1747583727143,0.10923019,105470.0,105460.0,0.30452088]
[1747583728053,0.63603156,105470.0,105460.0,0.0358]
[1747583728254,0.63406412,105470.0,105460.0,0.24440979]
[1747583728473,0.63406412,105470.0,105460.0,0.0358]
[1747583728689,0.69117404,105470.0,105460.0,0.004]
[1747583729118,0.69117404,105470.0,105460.0,0.01348226]
[1747583729119,0.69117368,105470.0,105460.0,0.01348226]
[1747583729344,0.3209126,105470.0,105460.0,0.02296443]
[1747583729562,0.3209126,105470.0,105460.0,0.05356443]
[1747583730411,0.31143115,105470.0,105460.0,0.27157527]
[1747583730624,0.32091197,105470.0,105460.0,0.27157527]
[1747583730830,0.11232313,105470.0,105460.0,0.30207464]
[1747583731869,0.11429048,105470.0,105460.0,0.30199909]
[1747583732657,0.12377104,105470.0,105460.0,0.30199909]
[1747583732876,0.33235988,105470.0,105460.0,0.25253574]
[1747583733084,0.63406483,105470.0,105460.0,0.03444414]
[1747583733294,0.63406483,105470.0,105460.0,0.0439264]
[1747583733466,0.33039342,105470.0,105460.0,0.05340857]
[1747583733641,0.33039333,105470.0,105460.0,0.25253601]
[1747583733847,0.32091189,105470.0,105460.0,0.26201782]
[1747583734092,0.31143107,105470.0,105460.0,0.27149954]
[1747583734296,0.11232313,105470.0,105460.0,0.30169891]
[1747583734495,0.11429048,105470.0,105460.0,0.30169891]
[1747583735674,0.09974963,105470.0,105460.0,0.30169891]
[1747583735883,0.09778228,105470.0,105460.0,0.30169891]
[1747583737818,0.09778228,105470.0,105460.0,0.64169891]
[1747583738000,0.00047288,105470.0,105460.0,0.64169891]
[1747583739651,0.00047288,105470.0,105460.0,0.6529733]
[1747583739982,0.00047288,105470.0,105460.0,0.7029733]
[1747583741220,0.00051288,105470.0,105460.0,0.9156133]
[1747583741952,0.00051288,105470.0,105460.0,0.91935284]
[1747583742407,0.00051288,105470.0,105460.0,0.91927202]
[1747583742606,0.00023688,105470.0,105460.0,0.91927202]
[1747583742843,0.00023688,105470.0,105460.0,0.91891202]
[1747583743696,0.20023688,105470.0,105460.0,0.91891202]
[1747583745015,0.20023688,105470.0,105460.0,0.94735402]
[1747583752391,0.20023688,105470.0,105460.0,0.73507402]
[1747583752965,0.20023688,105470.0,105460.0,0.91915202]
[1747583754191,0.20023688,105470.0,105460.0,0.70663202]
[1747583754400,0.20023688,105470.0,105460.0,0.91879202]
[1747583755018,0.20023688,105470.0,105460.0,0.93006103]
[1747583758261,0.20023688,105470.0,105460.0,0.71790103]
[1747583758479,0.20023688,105470.0,105460.0,0.93074103]
[1747583759063,0.20023688,105470.0,105460.0,0.91947202]
[1747583763095,0.20023688,105470.0,105460.0,0.70663202]
[1747583763303,0.20023688,105470.0,105460.0,0.91851202]
[1747583763742,0.20023688,105470.0,105460.0,0.70663202]
[1747583763955,0.20023688,105470.0,105460.0,0.91851202]
[1747583764163,0.20023688,105470.0,105460.0,0.88831202]
[1747583764611,0.80032553,105470.0,105460.0,0.09937725]
[1747583764822,0.79928789,105470.0,105460.0,0.27738686]
[1747583765030,0.81222553,105470.0,105460.0,0.27738686]
[1747583765256,0.81728538,105470.0,105460.0,0.20289094]
[1747583765504,0.83624747,105470.0,105460.0,0.2218551]
[1747583765718,0.83624747,105470.0,105460.0,0.20289094]
[1747583765901,0.83624738,105470.0,105460.0,0.22185483]
[1747583766074,0.82676629,105470.0,105460.0,0.23133655]
[1747583766256,0.83624729,105470.0,105460.0,0.22185483]
[1747583766691,0.82676629,105470.0,105460.0,0.26413646]
[1747583767217,0.82676629,105470.0,105460.0,0.25465483]
[1747583767416,0.82676629,105470.0,105460.0,0.26413655]
[1747583767624,0.82676629,105470.0,105460.0,0.27361818]
[1747583767826,0.81728538,105470.0,105460.0,0.27361818]
[1747583768032,0.53257615,105470.0,105460.0,0.27361818]
[1747583768596,0.52309524,105470.0,105460.0,0.26413646]
[1747583768995,0.53257615,105470.0,105460.0,0.26413646]
[1747583769840,0.52309524,105470.0,105460.0,0.26413646]
[1747583770422,0.81728538,105470.0,105460.0,0.22185492]
[1747583770650,0.82676629,105470.0,105460.0,0.23133655]
[1747583771053,0.52309524,105470.0,105460.0,0.23133655]
[1747583771458,0.52309524,105470.0,105460.0,0.23133664]
[1747583771656,0.53257606,105470.0,105460.0,0.23133664]
[1747583771904,0.52309524,105470.0,105460.0,0.24081827]
[1747583772117,0.52309524,105470.0,105460.0,0.27211827]
[1747583772742,0.27754628,105470.0,105460.0,0.30211827]
[1747583777474,0.27754628,105470.0,105460.0,0.35211827]
[1747583779489,0.27729878,105470.0,105460.0,0.35211827]
[1747583782978,0.27729878,105470.0,105460.0,0.30211827]
[1747583784780,0.27729878,105470.0,105460.0,0.27211827]
[1747583784979,0.28677934,105470.0,105460.0,0.27211827]
[1747583785288,0.7361654,105470.0,105460.0,0.00376332]
[1747583785733,0.73616531,105470.0,105460.0,0.02272757]
[1747583785884,0.73616522,105470.0,105460.0,0.22185492]
[1747583786224,0.73616522,105470.0,105460.0,0.25015492]
[1747583786225,0.71720268,105470.0,105460.0,0.25015492]
[1747583786355,0.70298774,105470.0,105460.0,0.26911827]
[1747583786562,0.71246856,105470.0,105460.0,0.26735495]
[1747583786929,0.71246856,105470.0,105460.0,0.25787332]
[1747583787278,0.72194947,105470.0,105460.0,0.2483916]
[1747583787478,0.72194947,105470.0,105460.0,0.25787341]
[1747583787680,0.72198947,105470.0,105460.0,0.25787341]
[1747583787913,0.73147047,105470.0,105460.0,0.25787341]
[1747583788321,0.73147047,105470.0,105460.0,0.23890961]
[1747583788563,0.72198947,105470.0,105460.0,0.2578735]
[1747583788730,0.72198947,105470.0,105460.0,0.26735531]
[1747583788953,0.72198947,105470.0,105460.0,0.26735486]
[1747583789322,0.71250856,105470.0,105460.0,0.26735441]
[1747583789508,0.9149445,105470.0,105460.0,0.25787278]
[1747583789710,0.72198956,105470.0,105460.0,0.25787278]
[1747583789916,0.9149445,105470.0,105460.0,0.24839106]
[1747583790140,0.9054635,105470.0,105460.0,0.25787278]
[1747583790549,0.91494441,105470.0,105460.0,0.25787278]
[1747583791014,0.91494441,105470.0,105460.0,0.24839106]
[1747583791395,0.91494441,105470.0,105460.0,0.25787278]
[1747583791595,0.71250856,105470.0,105460.0,0.25787278]
[1747583791794,0.9054635,105470.0,105460.0,0.25787278]
[1747583792047,0.9054635,105470.0,105460.0,0.24839106]
[1747583792239,0.9054635,105470.0,105460.0,0.25787278]
[1747583792838,0.71250856,105470.0,105460.0,0.25787278]
[1747583793025,0.9054635,105470.0,105460.0,0.25787278]
[1747583794100,0.9054635,105470.0,105460.0,0.24839106]
[1747583794299,0.89598268,105470.0,105460.0,0.25787278]
[1747583794496,0.89598268,105470.0,105460.0,0.26735441]
[1747583794917,0.89598268,105470.0,105460.0,0.25787278]
[1747583795326,0.9054635,105470.0,105460.0,0.25787278]
[1747583797927,0.9054635,105470.0,105460.0,0.24839106]
[1747583798158,0.9054635,105470.0,105460.0,0.25787278]
[1747583798355,0.9044635,105470.0,105460.0,0.24839106]
[1747583798531,0.9044635,105470.0,105460.0,0.25787278]
[1747583798935,0.91394441,105470.0,105460.0,0.23890925]
[1747583799262,0.91394441,105470.0,105460.0,0.24839106]
[1747583799683,0.9044635,105470.0,105460.0,0.24839106]
[1747583800149,0.9044635,105470.0,105460.0,0.23890925]
[1747583800333,0.9044635,105470.0,105460.0,0.22942762]
[1747583800466,0.91394441,105470.0,105460.0,0.25787341]
[1747583800949,0.91394441,105470.0,105460.0,0.26735522]
[1747583801136,0.91394441,105470.0,105460.0,0.2483916]
[1747583801422,0.91394441,105470.0,105460.0,0.26735513]
[1747583801977,0.91394441,105470.0,105460.0,0.25787341]
[1747583802207,0.91394441,105470.0,105460.0,0.2389097]
[1747583802413,0.9234255,105470.0,105460.0,0.24839169]
[1747583802638,0.91394441,105470.0,105460.0,0.24839169]
[1747583803147,0.91394441,105470.0,105460.0,0.2578735]
[1747583803684,0.91394441,105470.0,105460.0,0.24839169]
[1747583803957,0.72098947,105470.0,105460.0,0.2578735]
[1747583804110,0.91394441,105470.0,105460.0,0.2578735]
[1747583804531,0.91394441,105470.0,105460.0,0.24839169]
[1747583804732,0.91394441,105470.0,105460.0,0.23890979]
[1747583804936,0.93290668,105470.0,105460.0,0.03978226]
[1747583805101,0.93290659,105470.0,105460.0,0.04926443]
[1747583805304,0.93294659,105470.0,105460.0,0.03978226]
[1747583805501,0.92346541,105470.0,105460.0,0.03978226]
[1747583805711,0.92346541,105470.0,105460.0,0.0303]
[1747583805906,0.92346541,105470.0,105460.0,0.03978226]
[1747583806108,0.92346541,105470.0,105460.0,0.24839178]
[1747583806315,0.91298441,105470.0,105460.0,0.24839178]
[1747583806508,0.91298441,105470.0,105460.0,0.23890979]
[1747583806733,0.92246541,105470.0,105460.0,0.24839187]
[1747583806976,0.89402268,105470.0,105460.0,0.25787377]
[1747583807156,0.90350359,105470.0,105460.0,0.25787377]
[1747583807365,0.69058701,105470.0,105460.0,0.25787377]
[1747583807565,0.70006757,105470.0,105460.0,0.26735558]
[1747583807764,0.69042324,105470.0,105460.0,0.26735504]
[1747583807968,0.4974683,105470.0,105460.0,0.24839151]
[1747583808152,0.69042324,105470.0,105460.0,0.24839151]
[1747583808353,0.69990415,105470.0,105460.0,0.2483916]
[1747583808551,0.69890415,105470.0,105460.0,0.23890952]
[1747583809174,0.69890415,105470.0,105460.0,0.2483916]
[1747583809395,0.69790415,105470.0,105460.0,0.2483916]
[1747583809596,0.68842324,105470.0,105460.0,0.2483916]
[1747583809801,0.68842324,105470.0,105460.0,0.2578735]
[1747583809978,0.68842324,105470.0,105460.0,0.2483916]
[1747583809979,0.69790415,105470.0,105460.0,0.2483916]
[1747583810192,0.70738533,105470.0,105460.0,0.0303]
[1747583810402,0.03350474,105460.0,105450.0,0.01453113]
[1747583810565,0.74463673,105460.0,105450.0,0.01453113]
[1747583810797,0.74266938,105460.0,105450.0,0.01453113]
[1747583811008,0.95414938,105460.0,105450.0,0.01453113]
[1747583811220,0.96414938,105460.0,105450.0,0.01453113]
[1747583811650,0.96414938,105460.0,105450.0,0.01653113]
[1747583811842,1.17562938,105460.0,105450.0,0.01453113]
[1747583812042,1.17562938,105460.0,105450.0,0.0032499]
[1747583812250,1.36858432,105460.0,105450.0,0.0032499]
[1747583812703,1.37058432,105460.0,105450.0,0.0032499]
[1747583812932,1.17762938,105460.0,105450.0,0.0032499]
[1747583813147,1.17562938,105460.0,105450.0,0.0032499]
[1747583813360,1.16562938,105460.0,105450.0,0.0032499]
[1747583813896,1.16662938,105460.0,105450.0,0.0032499]
[1747583814095,1.50562938,105460.0,105450.0,0.0032499]
[1747583814315,1.70158432,105460.0,105450.0,0.0032499]
[1747583814532,1.77965526,105460.0,105450.0,0.0032499]
[1747583815410,1.78765526,105460.0,105450.0,0.0032499]
[1747583815617,1.71158432,105460.0,105450.0,0.0032499]
[1747583815755,0.2326937,105430.0,105420.0,0.22191719]
[1747583815961,0.73443876,105430.0,105420.0,0.0322]
[1747583817006,0.73448597,105430.0,105420.0,0.0322]
[1747583817266,0.54223947,105430.0,105420.0,0.0322]
[1747583817492,0.73519441,105430.0,105420.0,0.0322]
[1747583818163,0.72570963,105430.0,105420.0,0.0322]
[1747583819751,0.75720963,105430.0,105420.0,0.0322]
[1747583819972,0.20868859,105420.0,105410.0,0.031]
[1747583820219,0.69190787,105420.0,105410.0,0.031]
[1747583820914,0.30599799,105420.0,105410.0,0.031]
[1747583821152,0.49895293,105420.0,105410.0,0.031]
[1747583821591,0.49895293,105420.0,105410.0,0.033]
[1747583821816,0.48946743,105420.0,105410.0,0.033]
[1747583822055,0.71552237,105420.0,105410.0,0.002]
[1747583823039,0.73007145,105420.0,105410.0,0.002]
[1747583823504,0.7506123,105420.0,105410.0,0.002]
[1747583823736,0.7606123,105420.0,105410.0,0.002]
[1747583823957,0.7546123,105420.0,105410.0,0.002]
[1747583824196,0.7546123,105420.0,105410.0,0.001]
[1747583824422,0.19922189,105410.0,105400.0,0.1326]
[1747583824666,0.49897272,105410.0,105400.0,0.1326]
[1747583825131,0.74163272,105410.0,105400.0,0.1]
[1747583825593,0.96512851,105410.0,105400.0,0.08691218]
[1747583826207,0.77217357,105410.0,105400.0,0.08791218]
[1747583826603,0.77217357,105410.0,105400.0,0.08891218]
[1747583826786,0.96512851,105410.0,105400.0,0.08791218]
[1747583827163,1.30512851,105410.0,105400.0,0.08791218]
[1747583827401,1.30512851,105410.0,105400.0,0.08691218]
[1747583827840,0.91921863,105410.0,105400.0,0.08691218]
[1747583827980,1.30512851,105410.0,105400.0,0.08691218]
[1747583828388,0.91321863,105410.0,105400.0,0.08691218]
[1747583828593,0.85351357,105410.0,105400.0,0.31895298]
[1747583828801,0.0973094,105410.0,105400.0,0.36932731]
[1747583829008,0.3088694,105410.0,105400.0,0.36932731]
[1747583829211,0.31835535,105410.0,105400.0,0.36932731]
[1747583829423,0.3088694,105410.0,105400.0,0.36932731]
[1747583829625,0.3328962,105410.0,105400.0,0.36932731]
[1747583829989,0.30691106,105410.0,105400.0,0.36932731]
[1747583830224,0.32145191,105410.0,105400.0,0.36932731]
[1747583831105,0.33093804,105410.0,105400.0,0.36932731]
[1747583831322,0.32145191,105410.0,105400.0,0.36932731]
[1747583831506,0.29742511,105410.0,105400.0,0.36932731]
[1747583831721,0.08586511,105410.0,105400.0,0.36932731]
[1747583831846,0.29742511,105410.0,105400.0,0.36932731]
[1747583832198,0.30691115,105410.0,105400.0,0.36932731]
[1747583832434,0.08586511,105410.0,105400.0,0.36932731]
[1747583832634,0.29742511,105410.0,105400.0,0.36932731]
[1747583832841,0.31639728,105410.0,105400.0,0.3693274]
[1747583833051,0.52067344,105410.0,105400.0,0.37881443]
[1747583833226,0.34042453,105410.0,105400.0,0.3693274]
[1747583833430,0.33093813,105410.0,105400.0,0.37881443]
[1747583833579,0.33093804,105410.0,105400.0,0.37881443]
[1747583833819,0.34042435,105410.0,105400.0,0.37881443]
[1747583834045,0.33093804,105410.0,105400.0,0.37881443]
[1747583834623,0.34042435,105410.0,105400.0,0.37881443]
[1747583835154,0.34042435,105410.0,105400.0,0.15111218]
[1747583835155,0.53964615,105410.0,105400.0,0.15111218]
[1747583835337,0.81504991,105410.0,105400.0,0.11971218]
[1747583836783,0.80556342,105410.0,105400.0,0.08691218]
[1747583837195,0.51118794,105410.0,105400.0,0.31895307]
[1747583837401,0.52067434,105410.0,105400.0,0.11971218]
[1747583837643,0.52067434,105410.0,105400.0,0.32844055]
[1747583838320,0.52067434,105410.0,105400.0,0.31895307]
[1747583838782,0.52067434,105410.0,105400.0,0.36134046]
[1747583838783,0.53016047,105410.0,105400.0,0.36134046]
[1747583838980,0.31860047,105410.0,105400.0,0.37082767]
[1747583839196,0.53020047,105410.0,105400.0,0.37082767]
[1747583839419,0.53020047,105410.0,105400.0,0.36134046]
[1747583839826,0.53020047,105410.0,105400.0,0.37082758]
[1747583840052,0.33097849,105410.0,105400.0,0.38031461]
[1747583840252,0.34046507,105410.0,105400.0,0.38031461]
[1747583841018,0.3309784,105410.0,105400.0,0.38031461]
[1747583841250,0.34046489,105410.0,105400.0,0.38031461]
[1747583841473,0.31156596,105410.0,105400.0,0.38031461]
[1747583842226,0.6946,105420.0,105410.0,0.25109451]
[1747583842427,0.7919094,105420.0,105410.0,0.28339451]
[1747583843142,0.43884549,105430.0,105410.0,0.26442144]
[1747583843143,4.721e-05,105430.0,105410.0,0.26442144]
[1747583843360,0.004,105420.0,105410.0,0.27390748]
[1747583843971,0.09735661,105430.0,105420.0,0.21817382]
[1747583844172,0.09935661,105430.0,105420.0,0.28107382]
[1747583844684,0.09735661,105430.0,105420.0,0.28107382]
[1747583844878,0.10684094,105430.0,105420.0,0.28107382]
[1747583845138,0.10884085,105430.0,105420.0,0.28107382]
[1747583845340,0.32948536,105430.0,105420.0,0.28107382]